bitfinex-derivatives/quotes_SOLF0:USTF0_20250409
["timestamp","ask_amount","ask_price","bid_price","bid_amount"]
[1744157985449,9.4574,105.83,105.82,42.46]
[1744157985652,3.0648,105.87,105.82,42.46]
[1744157985861,0.07120463,105.84,105.82,42.46]
[1744157986158,0.07120463,105.84,105.82,51.9182]
[1744157986354,0.07120463,105.84,105.82,42.52877332]
[1744157986568,6.1544,105.91,105.82,608.00495707]
[1744157986753,3.1479,105.94,105.84,56.73618375]
[1744157986951,3.1479,105.94,105.86,56.73618375]
[1744157987152,9.4487,105.93,105.86,56.73618375]
[1744157987451,3.1479,105.94,105.86,56.73618375]
[1744157987650,0.07265077,105.91,105.88,0.06097919]
[1744157987853,0.07265077,105.91,105.89,42.44]
[1744157988161,0.07265077,105.91,105.89,51.8916]
[1744157988560,0.07265077,105.91,105.89,42.44]
[1744157989959,0.07265077,105.91,105.88,0.06097919]
[1744157990460,56.80883452,105.91,105.86,42.44]
[1744157990654,99.24883452,105.91,105.81,42.44]
[1744157990855,160.30473762,105.9,105.81,42.44]
[1744157991054,9.4572,105.84,105.81,42.44]
[1744157991264,2.9081,105.89,105.81,42.44]
[1744157991661,0.06246469,105.86,105.84,0.07116946]
[1744157992461,0.06246469,105.86,105.84,42.49116946]
[1744157992763,9.4556,105.85,105.84,42.49116946]
[1744157993773,9.4556,105.85,105.84,0.07116946]
[1744157993976,0.06246469,105.86,105.84,0.07116946]
[1744157994465,9.4556,105.85,105.84,0.07116946]
[1744157994766,0.06246469,105.86,105.84,42.49116946]
[1744157995265,160.30473762,105.94,105.84,541.61116946]
[1744157995461,163.22653762,105.94,105.84,598.34735321]
[1744157995766,163.22653762,105.94,105.84,598.27618375]
[1744157996064,163.22653762,105.94,105.86,9.454]
[1744157996265,163.22653762,105.94,105.84,598.27618375]
[1744157996266,9.4516,105.9,105.87,42.42]
[1744157996566,9.4516,105.9,105.89,0.06746483]
[1744157996867,9.51143139,105.91,105.89,0.06746483]
[1744157997069,0.06083139,105.91,105.89,0.06746483]
[1744157997471,0.06083139,105.91,105.84,541.54]
[1744157997662,0.06083139,105.91,105.84,42.42]
[1744157997854,219.96272137,105.94,105.84,42.42]
[1744157998057,160.30473762,105.93,105.84,42.42]
[1744157998261,160.30473762,105.93,105.86,9.4543]
[1744157998662,9.4524,105.89,105.88,0.06330795]
[1744158000958,160.30473762,105.9,105.84,42.42]
[1744158001153,2.712,105.88,105.84,42.42]
[1744158001567,59.44818375,105.88,105.83,262.86900197]
[1744158001766,2.712,105.88,105.83,262.86900197]
[1744158002070,2.712,105.88,105.84,42.42]
[1744158002366,0.07253561,105.87,105.84,42.48932033]
[1744158002572,0.07253561,105.87,105.85,9.4552]
[1744158002768,0.07253561,105.87,105.84,42.48932033]
[1744158002955,0.07253561,105.87,105.85,9.4552]
[1744158003159,0.07253561,105.87,105.84,42.48932033]
[1744158003568,0.07253561,105.87,105.86,9.4547]
[1744158003771,165.79733762,105.93,105.85,56.73618375]
[1744158003967,2.7481,105.93,105.88,9.4525]
[1744158004162,9.4516,105.9,105.88,42.42]
[1744158004471,2.7481,105.93,105.88,42.42]
[1744158004860,9.4515,105.9,105.89,0.06795477]
[1744158006074,2.81566767,105.92,105.89,0.06795477]
[1744158006372,0.07116767,105.92,105.89,0.06795477]
[1744158006757,0.07116767,105.92,105.9,9.4507]
[1744158007059,0.07116767,105.92,105.89,0.06795477]
[1744158007260,9.52086767,105.92,105.9,9.4511]
[1744158007460,9.52086767,105.92,105.89,0.06795477]
[1744158007657,0.07116767,105.92,105.89,0.06795477]
[1744158007863,0.07116767,105.92,105.9,9.4507]
[1744158008170,9.52056767,105.92,105.89,0.06795477]
[1744158008371,0.07116767,105.92,105.89,0.06795477]
[1744158008671,9.4507,105.91,105.89,0.06795477]
[1744158009573,9.52096767,105.92,105.89,9.51995477]
[1744158009762,0.07116767,105.92,105.89,0.06795477]
[1744158010374,0.07116767,105.92,105.9,9.4511]
[1744158011074,0.07116767,105.92,105.91,9.4502]
[1744158011274,0.07116767,105.92,105.91,52.8702]
[1744158011467,2.9251,105.95,105.91,43.42]
[1744158011772,166.03693762,105.97,105.93,9.4481]
[1744158011974,6.66919466,105.96,105.91,43.42]
[1744158012175,166.03693762,105.97,105.91,43.42]
[1744158012371,9.4471,105.95,105.92,9.4489]
[1744158012775,9.51699587,105.95,105.92,9.51303766]
[1744158013072,0.06989587,105.95,105.92,0.06413766]
[1744158013572,9.51699587,105.95,105.92,9.51303766]
[1744158014277,9.4476,105.94,105.92,0.06413766]
[1744158014870,0.06989587,105.95,105.92,9.51293766]
[1744158015069,0.06989587,105.95,105.92,0.06413766]
[1744158015671,6.66037536,105.94,105.91,43.42]
[1744158015875,0.06989587,105.95,105.88,43.4]
[1744158016073,6.66038674,105.94,105.88,43.4]
[1744158016280,78.06701288,105.96,105.88,43.4]
[1744158016472,9.451,105.91,105.88,52.8526]
[1744158016673,6.66026451,105.94,105.88,43.4]
[1744158016983,9.452,105.89,105.88,0.06031789]
[1744158017285,9.452,105.89,105.83,2.9776]
[1744158017286,56.50677583,105.91,105.82,306.26900197]
[1744158017583,9.456,105.85,105.82,315.72680197]
[1744158017981,9.456,105.85,105.83,9.4573]
[1744158018181,9.4552,105.86,105.83,9.4573]
[1744158018382,0.06291813,105.85,105.83,0.0726199]
[1744158018889,0.06291813,105.85,105.84,9.4565]
[1744158019291,160.30473762,105.9,105.83,56.50818184]
[1744158019583,2.9748,105.92,105.83,56.43556194]
[1744158019783,9.4521,105.89,105.86,9.4541]
[1744158019984,9.4521,105.89,105.86,52.8541]
[1744158020485,9.52093292,105.89,105.86,52.9171069]
[1744158021084,9.52093292,105.89,105.87,9.4537]
[1744158021085,0.06883292,105.89,105.87,9.4537]
[1744158021988,9.52093292,105.89,105.87,9.4537]
[1744158022188,0.06883292,105.89,105.86,43.4630069]
[1744158023078,9.52133292,105.89,105.86,43.4630069]
[1744158023279,9.52133292,105.89,105.86,52.9168069]
[1744158023584,0.06883292,105.89,105.86,43.4630069]
[1744158023889,9.4538,105.87,105.86,43.4630069]
[1744158024085,0.06883292,105.89,105.86,43.4630069]
[1744158025190,9.52123292,105.89,105.86,43.4630069]
[1744158025691,9.52123292,105.89,105.86,52.9172069]
[1744158026393,0.06883292,105.89,105.86,43.4630069]
[1744158027091,9.4538,105.87,105.86,43.4630069]
[1744158028095,0.06883292,105.89,105.86,43.4630069]
[1744158028698,0.06883292,105.89,105.88,9.4529]
[1744158029400,163.25913762,105.94,105.87,56.43556194]
[1744158029588,2.9544,105.94,105.89,56.43556194]
[1744158029784,160.30473762,105.98,105.91,56.43556194]
[1744158030182,2.9544,106.02,105.95,56.43556194]
[1744158030387,9.4426,106.0,105.96,43.42]
[1744158030592,2.9544,106.02,105.96,43.42]
[1744158030793,52.24361524,106.04,105.99,56.43556194]
[1744158030999,52.24361524,106.04,105.97,56.50038727]
[1744158031000,52.24361524,106.04,106.01,56.43556194]
[1744158031498,52.24361524,106.04,106.03,9.4395]
[1744158031695,52.24361524,106.04,106.03,43.4]
[1744158032100,52.24361524,106.04,106.0,43.4]
[1744158032301,52.24361524,106.04,105.99,43.4]
[1744158032608,9.4422,106.0,105.99,43.4]
[1744158033198,8.6129,106.03,105.99,43.4]
[1744158033390,0.06987037,106.01,105.99,43.4]
[1744158033796,9.4422,106.0,105.99,43.4]
[1744158034291,9.4431,105.99,105.98,0.06771969]
[1744158034898,9.4449,105.97,105.96,43.4]
[1744158035100,0.06987037,106.01,105.93,43.4]
[1744158035403,6.65838956,106.02,105.93,43.4]
[1744158035601,63.0939515,106.02,105.93,43.4]
[1744158035902,9.4467,105.95,105.93,43.4]
[1744158036103,0.06240437,105.99,105.93,43.4]
[1744158036300,56.43556194,106.02,105.93,43.4]
[1744158036301,56.43556194,106.02,105.93,43.46360468]
[1744158036603,0.06355445,105.97,105.93,99.83556194]
[1744158036803,0.06355445,105.97,105.96,0.06004377]
[1744158037102,0.06355445,105.97,105.96,43.44004377]
[1744158037492,9.50845445,105.97,105.96,43.44004377]
[1744158037691,0.06355445,105.97,105.96,43.44004377]
[1744158037986,9.50845445,105.97,105.96,43.44004377]
[1744158038189,0.06355445,105.97,105.96,43.44004377]
[1744158038802,0.06355445,105.97,105.96,52.88584377]
[1744158039200,9.4417,106.01,105.96,43.44004377]
[1744158039404,9.4417,106.01,105.97,9.4444]
[1744158039605,168.91763762,106.03,105.97,9.4444]
[1744158039895,168.91763762,106.03,105.96,43.38]
[1744158040198,42.38,106.02,105.96,43.38]
[1744158040394,0.07041027,106.01,105.98,0.06200321]
[1744158041601,9.443,106.0,105.98,0.06200321]
[1744158041794,0.07041027,106.01,105.98,0.06200321]
[1744158043899,0.07041027,106.01,105.99,42.38]
[1744158044201,9.51241027,106.01,105.99,42.38]
[1744158045401,0.07041027,106.01,105.99,51.8223]
[1744158045611,5.4814,106.07,106.0,34.63165346]
[1744158045801,5.4814,106.07,106.02,34.63165346]
[1744158046005,9.4364,106.07,106.04,9.438]
[1744158046414,2.8293,106.08,106.03,42.36]
[1744158046708,12.2001,106.1,106.06,9.4361]
[1744158046909,2.7661,106.1,106.07,42.36]
[1744158047105,0.06195916,106.09,106.07,42.36]
[1744158047407,166.08103762,106.17,106.08,34.63165346]
[1744158047709,160.30473762,106.16,106.07,42.36]
[1744158048002,202.66473762,106.16,106.05,5.8352]
[1744158048209,34.63165346,106.14,106.06,42.36]
[1744158048507,9.4333,106.1,106.09,0.07248949]
[1744158049221,169.10183762,106.11,106.06,42.36]
[1744158050403,0.06285416,106.1,106.07,0.06902039]
[1744158052013,9.4351,106.08,106.07,0.06902039]
[1744158052303,0.06285416,106.1,106.07,0.06902039]
[1744158052506,9.4351,106.08,106.07,0.06902039]
[1744158053208,0.06285416,106.1,106.07,0.06902039]
[1744158054113,9.4348,106.09,106.07,0.06902039]
[1744158054313,0.06285416,106.1,106.07,0.06902039]
[1744158054611,9.49675416,106.1,106.07,0.06902039]
[1744158055412,0.06285416,106.1,106.07,0.06902039]
[1744158056013,9.4351,106.08,106.07,0.06902039]
[1744158058516,160.36759178,106.1,106.05,42.34]
[1744158058910,9.4369,106.06,106.05,42.34]
[1744158059612,0.06355953,106.07,106.05,42.34]
[1744158060111,0.06355953,106.07,106.05,42.40373679]
[1744158060309,9.4369,106.06,106.05,42.40373679]
[1744158060908,9.4369,106.06,106.05,0.06373679]
[1744158061111,9.4395,106.03,106.02,42.34]
[1744158061909,216.49056072,106.1,106.02,42.34]
[1744158062109,160.30473762,106.09,106.02,42.34]
[1744158062311,9.4369,106.06,106.05,0.06691994]
[1744158065022,9.50884616,106.07,106.05,0.06691994]
[1744158065514,9.4369,106.06,106.05,0.06691994]
[1744158066114,9.4395,106.03,106.02,42.34]
[1744158066415,3.3822,106.06,106.02,42.34]
[1744158066618,160.30473762,106.09,106.02,42.34]
[1744158066816,160.30473762,106.09,106.02,98.5258231]
[1744158067213,0.06347266,106.07,106.04,0.06361161]
[1744158067416,0.06347266,106.07,106.05,42.34]
[1744158067713,9.4369,106.06,106.05,42.34]
[1744158067911,0.06347266,106.07,106.05,42.34]
[1744158068109,0.06347266,106.07,106.06,9.4369]
[1744158068614,0.06347266,106.07,106.05,51.7774]
[1744158069223,0.06347266,106.07,106.06,9.4369]
[1744158069522,0.06347266,106.07,106.04,0.06361161]
[1744158070724,9.4378,106.05,106.04,0.06361161]
[1744158070922,160.30473762,106.06,105.97,45.9399]
[1744158071129,3.3417,106.04,105.95,34.58132958]
[1744158071422,163.71503762,106.03,105.94,3.269]
[1744158071614,160.30473762,106.02,105.93,540.68]
[1744158071821,9.4435,105.99,105.93,540.68]
[1744158072019,0.06419137,105.99,105.96,0.06178788]
[1744158072215,0.06419137,105.99,105.96,42.70178788]
[1744158072422,9.50779137,105.99,105.96,52.14698788]
[1744158072728,0.06419137,105.99,105.96,42.70178788]
[1744158073025,0.06419137,105.99,105.98,9.444]
[1744158074319,3.3417,106.04,106.01,9.4406]
[1744158074520,163.76073762,106.05,106.0,42.66]
[1744158074718,160.30473762,106.05,106.0,42.66]
[1744158075321,160.30473762,106.05,106.0,52.1017]
[1744158075526,0.06625298,106.04,106.01,0.06079873]
[1744158076435,0.06625298,106.04,106.02,9.44]
[1744158076633,0.06625298,106.04,106.03,42.66]
[1744158076634,9.50495298,106.04,106.03,42.66]
[1744158077029,0.06625298,106.04,106.01,0.06079873]
[1744158077236,0.06625298,106.04,105.99,42.66]
[1744158077433,42.72625298,106.04,105.96,42.66]
[1744158077630,160.30473762,106.03,105.96,52.1052]
[1744158077834,163.59153762,106.03,105.96,42.66]
[1744158078232,163.59153762,106.03,105.96,77.24132958]
[1744158078536,0.06049926,106.01,105.98,0.06981676]
[1744158078927,0.06049926,106.01,105.98,34.65114634]
[1744158079129,0.06049926,106.01,105.99,42.66]
[1744158080636,9.4422,106.0,105.99,42.66]
[1744158080830,0.06049926,106.01,105.98,0.06981676]
[1744158081038,0.06049926,106.01,105.96,42.66]
[1744158081233,6.08323002,106.0,105.96,42.66]
[1744158081632,0.06049926,106.01,105.96,42.66]
[1744158081831,160.36523688,106.01,105.96,42.66]
[1744158082142,160.36523688,106.01,105.97,0.06826454]
[1744158082936,9.4435,105.99,105.97,0.06826454]
[1744158083238,169.80693688,106.01,105.97,0.06826454]
[1744158083435,169.80693688,106.01,105.98,9.4436]
[1744158083736,160.36523688,106.01,105.99,42.66]
[1744158084438,160.36523688,106.01,105.97,0.06826454]
[1744158084840,163.75153688,106.01,105.97,0.06826454]
[1744158085539,9.4423,106.0,105.97,0.06826454]
[1744158085731,163.75153688,106.01,105.97,0.06826454]
[1744158085931,9.444,105.98,105.97,0.06826454]
[1744158087543,9.4449,105.97,105.96,42.66]
[1744158087730,0.06664634,105.99,105.93,540.7]
[1744158087935,160.30473762,105.98,105.93,540.7]
[1744158088243,3.432,105.97,105.93,540.7]
[1744158088442,3.432,105.97,105.94,9.447]
[1744158088742,0.06861633,105.96,105.94,0.06157976]
[1744158089133,3.51021633,105.96,105.94,0.06157976]
[1744158089947,12.95651633,105.96,105.94,0.06157976]
[1744158090133,0.06861633,105.96,105.94,0.06157976]
[1744158090540,9.4467,105.95,105.94,0.06157976]
[1744158090842,9.4467,105.95,105.84,139.26132958]
[1744158090843,160.30473762,105.94,105.84,139.26132958]
[1744158091051,9.4523,105.89,105.86,9.4541]
[1744158091247,77.26132958,105.91,105.84,42.68]
[1744158091459,3.6464,105.9,105.84,42.68]
[1744158091747,160.30473762,105.92,105.84,77.26132958]
[1744158091949,0.07207394,105.88,105.86,0.06831727]
[1744158092143,0.07207394,105.88,105.87,42.68]
[1744158092650,0.07207394,105.88,105.87,52.1338]
[1744158093151,0.07207394,105.88,105.87,42.68]
[1744158094547,0.07207394,105.88,105.87,52.1338]
[1744158096754,0.07207394,105.88,105.87,42.68]
[1744158097839,0.07207394,105.88,105.87,52.1338]
[1744158099352,7.394e-05,105.88,105.87,52.1338]
[1744158104849,160.30473762,105.94,105.87,575.96132958]
[1744158105050,3.5452,105.96,105.88,1.6985399]
[1744158105352,3.5452,105.96,105.87,575.96132958]
[1744158105353,9.4476,105.94,105.87,575.96132958]
[1744158105553,3.5452,105.96,105.87,575.96132958]
[1744158106049,0.06825407,105.93,105.9,0.06296909]
[1744158106260,0.06825407,105.93,105.91,42.8]
[1744158106558,3.5656,105.97,105.91,77.38132958]
[1744158106758,160.30473762,105.99,105.97,9.4441]
[1744158106961,3.5634,106.0,105.96,42.8]
[1744158107147,3.5634,106.0,105.97,42.8]
[1744158107349,3.5634,106.0,105.98,9.4436]
[1744158107653,0.06283793,106.0,105.97,42.86711966]
[1744158107853,0.06283793,106.0,105.97,0.06711966]
[1744158108159,9.50553793,106.0,105.97,0.06711966]
[1744158108556,9.444,105.98,105.95,42.8]
[1744158109166,9.4464,105.96,105.89,44.7561]
[1744158109366,163.72263762,105.99,105.89,44.7561]
[1744158109367,3.5418,105.97,105.89,44.7561]
[1744158109565,3.5418,105.97,105.93,9.448]
[1744158109762,9.4464,105.96,105.89,44.7561]
[1744158109956,0.0703955,105.94,105.92,0.06683406]
[1744158110156,0.0703955,105.94,105.92,42.86683406]
[1744158110959,0.0703955,105.94,105.93,9.4485]
[1744158111156,0.0703955,105.94,105.92,42.86683406]
[1744158111666,0.0703955,105.94,105.93,9.4485]
[1744158111856,0.0703955,105.94,105.92,42.86683406]
[1744158112259,0.0703955,105.94,105.93,9.4485]
[1744158112454,9.55e-05,105.94,105.93,9.4485]
[1744158112660,160.30473762,105.98,105.97,9.4449]
[1744158112967,9.4418,106.01,105.97,42.8]
[1744158113152,160.30473762,106.03,105.97,42.8]
[1744158113959,0.06872369,106.01,105.99,0.06823684]
[1744158114455,0.06872369,106.01,105.94,42.8]
[1744158114456,9.50872369,106.01,105.94,42.8]
[1744158114644,34.58132958,106.0,105.94,42.8]
[1744158114850,9.445,105.97,105.92,42.78]
[1744158115559,0.06249757,105.96,105.94,9.4471]
[1744158115763,9.4467,105.95,105.93,0.06420879]
[1744158116363,9.50879757,105.96,105.93,0.06420879]
[1744158116563,0.06249757,105.96,105.93,0.06420879]
[1744158117060,9.4476,105.94,105.93,0.06420879]
[1744158117261,9.4476,105.94,105.92,42.78]
[1744158117460,9.50869757,105.96,105.93,9.4479]
[1744158117653,0.06249757,105.96,105.92,42.78]
[1744158118056,9.50839757,105.96,105.93,9.4476]
[1744158118262,0.06249757,105.96,105.92,42.78]
[1744158118461,0.06249757,105.96,105.93,0.06840604]
[1744158118875,0.06249757,105.96,105.93,10.76772042]
[1744158119159,0.06249757,105.96,105.93,9.07200604]
[1744158119859,0.06249757,105.96,105.95,9.4467]
[1744158120053,9.4418,106.01,105.95,42.8]
[1744158120254,3.5505,106.02,105.95,42.8]
[1744158120454,9.4415,106.01,105.95,541.38]
[1744158120663,3.5505,106.02,105.95,541.38]
[1744158121161,0.06566096,106.0,105.97,9.50977782]
[1744158121362,0.06566096,106.0,105.97,0.06567782]
[1744158121665,9.4438,105.99,105.97,0.06567782]
[1744158121861,0.06566096,106.0,105.97,0.06567782]
[1744158122660,9.444,105.98,105.97,0.06567782]
[1744158123551,9.44,105.98,105.92,42.78]
[1744158123755,56.28404376,105.95,105.89,42.78]
[1744158123961,56.28404376,105.93,105.86,9.4545]
[1744158124151,160.30473762,105.92,105.85,305.64900197]
[1744158124353,56.28404376,105.89,105.85,305.64900197]
[1744158124558,56.28404376,105.89,105.85,262.86900197]
[1744158124764,7.40978743,105.88,105.86,0.07228606]
[1744158125160,7.40978743,105.88,105.82,272.32680197]
[1744158125463,7.40978743,105.88,105.82,262.86900197]
[1744158125666,7.40978743,105.88,105.84,9.4557]
[1744158125854,7.40978743,105.88,105.84,42.78]
[1744158126351,7.40978743,105.88,105.85,9.52607463]
[1744158126554,7.40978743,105.88,105.85,0.07097463]
[1744158126755,7.40978743,105.88,105.84,42.78]
[1744158126956,56.28404376,105.87,105.82,262.86900197]
[1744158127560,160.30473762,105.86,105.82,262.86900197]
[1744158128066,160.30473762,105.86,105.81,372.86885492]
[1744158128067,0.06006524,105.85,105.83,0.0720832]
[1744158128566,0.06006524,105.85,105.84,52.2565]
[1744158129653,0.06006524,105.85,105.84,42.8]
[1744158130165,0.06006524,105.85,105.84,52.2565]
[1744158133372,0.06006524,105.85,105.84,42.8]
[1744158133570,0.06006524,105.85,105.83,0.0720832]
[1744158133964,9.4565,105.84,105.83,0.0720832]
[1744158134271,56.344109,105.85,105.81,42.7]
[1744158134467,9.4598,105.81,105.78,52.1614]
[1744158135164,56.28404376,105.85,105.78,42.7]
[1744158135369,0.06310228,105.81,105.78,42.7]
[1744158135773,0.06310228,105.81,105.8,9.4601]
[1744158136071,0.06310228,105.81,105.78,42.7]
[1744158136670,0.06310228,105.81,105.74,7.3708]
[1744158136971,9.4627,105.78,105.74,52.1649]
[1744158137362,9.4627,105.78,105.75,9.4644]
[1744158137567,0.07080501,105.79,105.74,42.7]
[1744158138364,0.07080501,105.79,105.78,9.4619]
[1744158138567,0.07080501,105.79,105.78,52.1619]
[1744158138963,0.07080501,105.79,105.78,42.7]
[1744158139473,9.4629,105.77,105.75,42.72]
[1744158139670,0.07080501,105.79,105.75,42.72]
[1744158139976,160.37548784,105.78,105.75,42.72]
[1744158140177,9.4636,105.76,105.75,42.72]
[1744158140975,16.8702,105.77,105.73,9.4663]
[1744158141272,16.8702,105.77,105.72,42.72]
[1744158141479,160.30473762,105.78,105.72,42.72]
[1744158141480,0.06993141,105.76,105.72,42.72]
[1744158141671,0.06993141,105.76,105.75,9.4638]
[1744158141970,0.06993141,105.76,105.75,42.72]
[1744158142174,0.06993141,105.76,105.75,52.1845]
[1744158142474,0.06993141,105.76,105.75,42.72]
[1744158142675,9.53353141,105.76,105.75,42.72]
[1744158142878,0.06993141,105.76,105.75,42.72]
[1744158143874,160.30473762,105.75,105.66,42.72]
[1744158144082,167.72183762,105.75,105.67,1.70884793]
[1744158144280,0.06729119,105.72,105.69,9.4694]
[1744158144576,0.06729119,105.72,105.66,102.72674376]
[1744158144779,0.06729119,105.72,105.67,1.70888817]
[1744158144984,0.06729119,105.72,105.66,46.4427]
[1744158145470,0.06729119,105.72,105.67,1.70890311]
[1744158145780,0.06729119,105.72,105.69,9.4692]
[1744158145984,0.06729119,105.72,105.7,42.74]
[1744158146481,0.06729119,105.72,105.7,52.2084]
[1744158146680,0.06729119,105.72,105.7,42.74]
[1744158147383,9.4681,105.71,105.7,42.74]
[1744158148485,0.06729119,105.72,105.7,42.74]
[1744158149085,9.53489119,105.72,105.7,42.74]
[1744158149584,9.4681,105.71,105.7,42.74]
[1744158150085,0.06729119,105.72,105.66,46.4627]
[1744158150382,171.49493762,105.75,105.66,46.4627]
[1744158150579,9.4673,105.72,105.66,46.4627]
[1744158150776,9.530053,105.72,105.66,46.4627]
[1744158151175,0.062753,105.72,105.66,46.4627]
[1744158151379,0.062753,105.72,105.67,1.7099131]
[1744158151683,6.8831,105.78,105.68,56.28404376]
[1744158151886,9.4646,105.75,105.72,9.4668]
[1744158152086,10.6358,105.78,105.72,52.2268]
[1744158152385,9.4638,105.76,105.73,9.4659]
[1744158152882,9.52889434,105.76,105.73,9.53074412]
[1744158153188,0.06509434,105.76,105.75,9.4645]
[1744158153388,0.06509434,105.76,105.73,0.06484412]
[1744158153891,0.06509434,105.76,105.74,9.465]
[1744158154095,0.06509434,105.76,105.73,0.06484412]
[1744158154384,0.06509434,105.76,105.75,9.4645]
[1744158154578,0.06509434,105.76,105.75,52.2245]
[1744158154888,163.80483762,105.82,105.75,42.76]
[1744158155489,9.4626,105.78,105.75,52.2242]
[1744158155993,9.52360989,105.78,105.75,52.28483032]
[1744158156489,9.4628,105.77,105.75,42.82063032]
[1744158156987,9.52330989,105.78,105.75,52.28503032]
[1744158158092,0.06100989,105.78,105.76,9.4635]
[1744158158393,0.06100989,105.78,105.75,42.82063032]
[1744158158693,0.06100989,105.78,105.76,9.4633]
[1744158158993,0.06100989,105.78,105.75,42.82063032]
[1744158159290,0.06100989,105.78,105.75,52.28483032]
[1744158159695,0.06100989,105.78,105.76,9.463]
[1744158159891,0.06100989,105.78,105.75,42.82063032]
[1744158160386,0.06100989,105.78,105.76,9.4636]
[1744158160583,0.06100989,105.78,105.75,42.82063032]
[1744158160785,0.06100989,105.78,105.77,9.4627]
[1744158161289,0.06100989,105.78,105.76,9.4631]
[1744158161883,0.06100989,105.78,105.75,42.82063032]
[1744158163186,0.06100989,105.78,105.77,9.4627]
[1744158167194,0.06100989,105.78,105.76,9.4631]
[1744158167584,0.06100989,105.78,105.75,42.82063032]
[1744158168099,9.52340989,105.78,105.75,42.82063032]
[1744158168295,0.06100989,105.78,105.75,42.82063032]
[1744158168887,0.06100989,105.78,105.77,9.4627]
[1744158170597,9.52340989,105.78,105.75,9.52473032]
[1744158170895,0.06100989,105.78,105.75,0.06063032]
[1744158171190,0.06100989,105.78,105.75,43.28063032]
[1744158171407,9.89e-06,105.78,105.75,43.28063032]
[1744158171693,9.46190989,105.78,105.76,43.22]
[1744158172692,9.89e-06,105.78,105.76,43.22]
[1744158172897,9.89e-06,105.78,105.75,0.06063032]
[1744158173291,9.4636,105.76,105.75,0.06063032]
[1744158174985,9.4632,105.77,105.75,0.06063032]
[1744158175189,9.89e-06,105.78,105.75,43.28063032]
[1744158176792,9.46250989,105.78,105.75,52.74483032]
[1744158179091,9.89e-06,105.78,105.76,9.4636]
[1744158179397,9.89e-06,105.78,105.75,43.28063032]
[1744158179604,9.89e-06,105.78,105.76,9.4636]
[1744158180604,9.89e-06,105.78,105.77,9.4627]
[1744158180797,9.46210989,105.78,105.75,43.28063032]
[1744158180997,9.46210989,105.78,105.75,52.74453032]
[1744158181198,9.89e-06,105.78,105.75,43.28063032]
[1744158181700,9.89e-06,105.78,105.77,9.4627]
[1744158181902,160.30473762,105.86,105.78,34.77594619]
[1744158182205,3.5283,105.88,105.8,34.77594619]
[1744158182406,3.5283,105.88,105.81,8.2848]
[1744158182602,12.9818,105.88,105.82,43.22]
[1744158183008,0.07043828,105.86,105.84,0.06362461]
[1744158183209,216.19643931,105.92,105.85,542.62]
[1744158183506,216.19643931,105.92,105.86,3.3275]
[1744158184209,216.19643931,105.92,105.86,9.4545]
[1744158184407,0.07265952,105.9,105.88,0.06250969]
[1744158184804,9.4521,105.89,105.88,0.06250969]
[1744158185317,385.78788517,105.96,105.88,122.27440207]
[1744158185509,62.98810346,106.02,105.95,34.77594619]
[1744158185703,9.4367,106.07,106.01,44.21704619]
[1744158185902,1602.67957971,106.03,106.02,43.22]
[1744158186116,104.46153097,106.05,106.02,77.99594619]
[1744158186300,143.56059063,106.06,106.02,87.43594619]
[1744158186506,143.56059063,106.06,106.05,34.77594619]
[1744158186707,353.81324114,106.09,106.08,9.4351]
[1744158186908,225.20204114,106.09,106.08,122.16699238]
[1744158187203,1191.12327929,106.11,106.08,122.16699238]
[1744158187204,1191.12327929,106.11,106.08,126.62486011]
[1744158187408,1191.12327929,106.11,106.1,9.4333]
[1744158187616,160.30473762,106.2,106.1,13.89296773]
[1744158187811,491.00366729,106.13,106.12,34.77594619]
[1744158188010,160.30473762,106.2,106.12,39.24560323]
[1744158188211,141.39,106.19,106.13,4.46965704]
[1744158188410,94.26,106.18,106.14,4.46965704]
[1744158188610,141.39,106.17,106.15,4.46965704]
[1744158188806,94.26,106.17,106.16,4.46965704]
[1744158189003,141.39,106.16,106.09,40.67849702]
[1744158189208,47.13,106.14,106.1,4.74782106]
[1744158189405,47.13,106.12,106.11,4.74782106]
[1744158189610,94.26,106.13,106.11,4.74782106]
[1744158189905,45.78352354,106.13,106.12,4.74782106]
[1744158190109,45.78352354,106.11,106.1,172.21144993]
[1744158190315,45.56818678,106.14,106.12,40.67849702]